bitfinex/quotes_ETHUSD_20240710
["timestamp","ask_amount","ask_price","bid_price","bid_amount"]
[1720606517924,3.0,3090.6,3089.6,0.06472427]
[1720606519624,6.23568,3090.6,3089.6,0.06472427]
[1720606520034,3.23551,3090.7,3089.6,0.06472427]
[1720606520718,0.50763726,3091.3,3090.2,2.445]
[1720606521036,3.23532,3090.9,3090.2,7.47]
[1720606522733,3.2351,3091.1,3090.2,7.47]
[1720606522919,6.23521,3091.0,3090.2,7.47]
[1720606523312,3.0,3091.0,3090.2,7.47]
[1720606523497,3.0,3091.1,3090.2,7.47]
[1720606523699,6.23506,3091.2,3090.2,7.47]
[1720606524132,3.23511,3091.1,3090.2,7.47]
[1720606524296,3.0,3091.0,3090.2,7.47]
[1720606526999,3.0,3091.2,3090.2,7.47]
[1720606527202,3.29986672,3091.1,3090.2,7.47]
[1720606527408,3.0,3091.0,3090.2,7.47]
[1720606528451,6.2352,3091.0,3090.2,7.47]
[1720606534518,6.2352,3091.0,3090.2,5.97]
[1720606536361,9.47048,3091.0,3090.2,5.97]
[1720606536557,6.2352,3091.0,3090.2,5.97]
[1720606537563,9.47048,3091.0,3090.2,5.97]
[1720606537979,6.2352,3091.0,3090.2,5.97]
[1720606539949,3.0,3091.0,3090.3,0.06471094]
[1720606540137,3.0,3091.1,3090.3,0.06471094]
[1720606540469,6.23512,3091.1,3090.4,2.3219]
[1720606540761,3.23531,3090.9,3090.4,2.3219]
[1720606540980,3.0,3091.1,3090.2,5.97]
[1720606541138,3.23593,3090.3,3090.2,5.97]
[1720606541347,3.23593,3090.3,3089.7,2.39686432]
[1720606541639,3.23596,3090.3,3089.7,2.39686432]
[1720606541856,3.23587,3090.4,3089.7,2.39686432]
[1720606542170,3.23573,3090.5,3089.7,2.39686432]
[1720606542743,3.23569,3090.6,3089.7,2.39686432]
[1720606542942,3.0,3090.5,3089.7,2.39686432]
[1720606543391,3.0,3090.6,3089.7,2.39686432]
[1720606544092,3.23514,3091.1,3089.8,2.4792]
[1720606544244,6.23528,3091.0,3089.8,2.4792]
[1720606544445,6.23528,3091.0,3089.9,3.23634]
[1720606544682,6.23528,3091.0,3090.0,2.2965]
[1720606544979,3.0,3091.0,3090.1,2.4492]
[1720606545180,3.23516,3091.1,3090.1,2.51391111]
[1720606545381,3.23516,3091.1,3090.1,2.4492]
[1720606546178,3.23521,3091.0,3090.1,2.4492]
[1720606546680,3.23533,3090.9,3090.1,2.4492]
[1720606546852,3.23553,3090.7,3090.1,2.4492]
[1720606547053,3.23563,3090.6,3090.1,2.4492]
[1720606547856,6.47073,3090.9,3090.1,2.4492]
[1720606548061,3.23541,3090.8,3090.1,2.4492]
[1720606548284,6.23493,3091.3,3090.1,2.4492]
[1720606548488,3.23509,3091.1,3090.1,2.4492]
[1720606549818,3.23509,3091.1,3090.1,2.51391053]
[1720606550329,9.46988,3091.3,3090.1,2.51391053]
[1720606550506,3.23499,3091.2,3090.1,2.4492]
[1720606551322,3.23499,3091.2,3090.1,2.51391014]
[1720606551698,3.0,3091.3,3090.1,2.4492]
[1720606551699,6.23488,3091.3,3090.1,2.4492]
[1720606551901,6.23488,3091.3,3090.2,3.0]
[1720606552101,3.23457,3091.6,3090.3,2.43700535]
[1720606552506,3.0,3091.5,3090.3,2.43700535]
[1720606552876,3.23457,3091.6,3090.6,3.0]
[1720606553080,3.23457,3091.6,3090.7,2.3686]
[1720606553312,3.23438,3091.8,3090.7,2.3686]
[1720606553503,6.23452,3091.7,3090.7,2.3686]
[1720606555626,3.0,3091.7,3090.8,0.06469953]
[1720606555783,6.23437,3091.8,3090.7,2.3686]
[1720606556432,3.23448,3091.7,3090.7,2.3686]
[1720606557820,3.0,3091.8,3090.7,2.3686]
[1720606557998,6.23437,3091.8,3090.7,2.3686]
[1720606558329,3.2345,3091.7,3090.7,2.3686]
[1720606558827,3.0,3091.8,3090.7,2.3686]
[1720606559030,3.23438,3091.8,3090.7,2.3686]
[1720606559238,3.0,3091.7,3090.7,2.3686]
[1720606560732,6.23453,3091.7,3090.7,2.3686]
[1720606561930,3.23416,3092.0,3091.0,3.0]
[1720606562238,3.0,3091.9,3091.1,2.2596]
[1720606562532,6.4684,3092.0,3091.1,2.2596]
[1720606562703,3.23416,3092.0,3091.1,2.2596]
[1720606563034,6.46839,3092.0,3091.1,2.2596]
[1720606563195,3.23427,3091.9,3091.1,2.2596]
[1720606563834,0.50753828,3092.3,3091.3,2.429]
[1720606564097,3.23431,3091.9,3091.3,2.429]
[1720606564295,3.23431,3091.9,3091.2,5.97]
[1720606564296,3.29909672,3091.8,3091.2,5.97]
[1720606564550,3.23461,3091.6,3091.2,5.97]
[1720606564723,0.06471672,3091.5,3090.9,2.429]
[1720606565735,3.29932672,3091.6,3090.9,2.429]
[1720606566058,3.23472,3091.5,3090.9,2.429]
[1720606566191,0.06471672,3091.4,3090.8,18.13]
[1720606566394,3.23491,3091.3,3090.8,18.13]
[1720606567804,3.23511,3091.1,3090.8,18.13]
[1720606568840,3.23493,3091.3,3090.8,18.13]
[1720606569001,2.4285,3091.6,3090.8,18.13]
[1720606569002,3.2346,3091.6,3090.8,18.13]
[1720606569199,3.23485,3091.4,3090.8,18.13]
[1720606569404,3.23489,3091.3,3090.8,18.13]
[1720606570318,3.23489,3091.3,3090.7,2.39686432]
[1720606572742,3.2351,3091.1,3090.5,5.97]
[1720606573043,3.2352,3091.0,3090.3,3.24]
[1720606575113,0.06471672,3091.1,3090.3,3.24]
[1720606575360,2.4987,3091.3,3090.2,5.97]
[1720606575361,3.23557,3090.7,3090.2,5.97]
[1720606575570,3.23557,3090.7,3089.9,5.97]
[1720606575571,3.23605,3090.2,3089.9,5.97]
[1720606575849,3.23605,3090.2,3089.5,20.5834]
[1720606576099,3.23627,3090.0,3089.5,20.5834]
[1720606577429,3.23605,3090.2,3089.5,20.5834]
[1720606577815,3.23614,3090.1,3089.5,20.5834]
[1720606579355,3.23605,3090.2,3089.5,2.4534]
[1720606579356,6.47217,3090.2,3089.5,2.4534]
[1720606579557,3.23605,3090.2,3089.5,2.4534]
[1720606580745,6.23567,3090.6,3089.6,3.0]
[1720606580928,3.23534,3090.9,3089.7,3.23647]
[1720606581176,3.23526,3091.0,3089.8,3.30110577]
[1720606581492,3.23526,3091.0,3089.9,5.70754]
[1720606581655,6.47054,3091.0,3090.0,0.06471308]
[1720606582000,3.23526,3091.0,3090.0,0.06471308]
[1720606582555,3.23591,3090.4,3089.7,5.97]
[1720606582988,3.23572,3090.5,3089.7,5.97]
[1720606583593,3.23582,3090.4,3089.7,5.97]
[1720606584594,3.2361,3090.2,3089.7,5.97]
[1720606584800,3.2361,3090.2,3089.0,12.56356432]
[1720606584801,3.2361,3090.2,3089.4,5.97]
[1720606585107,3.23624,3090.0,3089.4,5.97]
[1720606587165,3.23657,3089.7,3089.4,5.97]
[1720606587397,3.23628,3090.0,3089.4,5.97]
[1720606587586,3.23621,3090.1,3089.4,5.97]
[1720606587884,3.23624,3090.0,3089.4,5.97]
[1720606588084,3.23637,3089.9,3089.4,5.97]
[1720606588284,3.23637,3089.9,3089.0,7.94556432]
[1720606588285,3.23637,3089.9,3089.1,5.97]
[1720606588506,3.30118672,3089.8,3089.1,5.97]
[1720606588798,3.23637,3089.9,3089.1,5.97]
[1720606589387,3.23645,3089.8,3089.1,5.97]
[1720606590767,3.23618,3090.1,3089.1,5.97]
[1720606591000,3.23625,3090.0,3089.1,5.97]
[1720606592003,3.23576,3090.5,3089.2,5.445]
[1720606592160,3.0,3090.4,3089.2,5.445]
[1720606592497,3.23604,3090.2,3089.2,8.68206]
[1720606592670,3.23551,3090.7,3089.4,3.23677]
[1720606592879,3.23548,3090.8,3089.6,8.68165]
[1720606594165,3.0,3090.7,3089.6,14.65165]
[1720606595162,6.23551,3090.7,3089.6,14.65165]
[1720606595366,3.0,3090.7,3089.6,14.65165]
[1720606595574,3.23615,3090.1,3089.6,5.97]
[1720606596064,3.23636,3089.9,3089.6,5.97]
[1720606598835,3.23645,3089.8,3089.6,5.97]
[1720606600078,3.23665,3089.7,3089.1,5.97]
[1720606600284,3.2369,3089.4,3089.1,5.97]
[1720606600507,3.2369,3089.4,3088.7,5.97]
[1720606602685,0.06471672,3089.3,3088.7,5.97]
[1720606603619,3.23705,3089.3,3088.7,5.97]
[1720606604323,3.2367,3089.6,3088.7,5.97]
[1720606605331,3.23647,3089.8,3088.7,5.97]
[1720606605486,3.23669,3089.6,3088.7,5.97]
[1720606605684,3.23677,3089.5,3088.7,5.97]
[1720606606707,3.23648,3089.8,3088.7,5.97]
[1720606606908,3.0,3089.7,3088.7,5.97]
[1720606607088,3.0,3089.7,3088.7,8.97]
[1720606607288,3.23611,3090.2,3088.9,2.445]
[1720606607627,2.2546,3090.5,3088.7,8.97]
[1720606607628,3.23588,3090.4,3089.3,2.445]
[1720606608892,6.4718,3090.4,3089.3,2.445]
[1720606609094,6.23594,3090.3,3089.3,2.445]
[1720606610846,3.23557,3090.7,3089.4,2.3175]
[1720606611129,3.0,3090.6,3089.4,8.2875]
[1720606611347,3.0,3090.6,3089.5,2.3175]
[1720606611907,3.0,3090.6,3089.6,3.0]
[1720606613040,6.23562,3090.6,3089.6,3.0]
[1720606617847,3.23535,3090.9,3089.6,3.0]
[1720606618142,3.23553,3090.7,3089.7,2.2506]
[1720606618730,3.23535,3090.9,3089.7,2.2506]
[1720606618940,3.23546,3090.8,3089.7,2.2506]
[1720606619521,3.23546,3090.8,3089.8,0.06471685]
[1720606620316,3.23535,3090.9,3089.8,0.06471685]
[1720606620846,3.23542,3090.8,3089.7,2.2506]
[1720606621029,3.23551,3090.7,3089.7,2.2506]
[1720606621654,3.23535,3090.9,3089.8,0.0647169]
[1720606622077,6.47074,3090.9,3089.8,0.0647169]
[1720606622287,3.23535,3090.9,3089.8,0.0647169]
[1720606622582,3.23535,3090.9,3089.7,2.2506]
[1720606622792,3.23515,3091.1,3089.7,2.31531649]
[1720606623089,3.23515,3091.1,3089.8,2.40191649]
[1720606623576,3.23515,3091.1,3089.9,2.3372]
[1720606623886,3.23515,3091.1,3090.0,0.06471245]
[1720606624540,5.56901,3091.5,3090.2,3.0]
[1720606624746,3.23478,3091.4,3090.2,9.03470717]
[1720606625260,3.0,3091.3,3090.3,0.06470709]
[1720606625475,3.74213604,3091.6,3090.3,2.52220678]
[1720606625645,3.0,3091.5,3090.3,2.52220678]
[1720606625840,3.0,3091.5,3090.7,2.4575]
[1720606626166,3.23457,3091.6,3090.7,2.4575]
[1720606626367,3.0,3091.5,3090.7,2.4575]
[1720606627839,6.23468,3091.5,3090.7,2.4575]
[1720606628243,3.06471672,3091.5,3090.3,2.4819]
[1720606628459,3.23502,3091.2,3090.3,2.4819]
[1720606630244,6.23471,3091.5,3090.4,2.4483]
[1720606630673,6.23471,3091.5,3090.5,0.06470195]
[1720606630864,6.23471,3091.5,3090.4,2.4483]
[1720606632536,0.50747413,3092.1,3090.7,3.0]
[1720606632650,3.23427,3091.9,3090.9,2.3047]
[1720606632855,3.2342,3092.0,3091.0,0.06469526]
[1720606633080,3.23427,3091.9,3091.0,0.06469526]
[1720606633690,3.23427,3091.9,3090.9,2.3047]
[1720606634446,3.0,3092.0,3091.2,3.0]
[1720606634700,3.23389,3092.3,3091.2,3.06468939]
[1720606634850,3.23389,3092.3,3091.3,0.06468939]
[1720606635971,3.23401,3092.2,3091.2,8.97]
[1720606637905,3.23401,3092.2,3091.3,0.06468859]
[1720606638202,6.46781,3092.3,3091.3,0.06468859]
[1720606638494,3.0,3092.2,3091.3,0.06468859]
[1720606638682,3.23389,3092.3,3091.4,2.3024]
[1720606639462,3.23389,3092.3,3091.5,0.06468796]
[1720606639705,9.46738,3092.5,3091.5,0.06468796]
[1720606639875,9.46739,3092.5,3091.5,0.06468796]
[1720606640208,6.23367,3092.5,3091.5,0.06468796]
[1720606640368,6.23367,3092.5,3091.6,2.4973]
[1720606640884,3.0,3092.5,3091.6,2.4973]
[1720606641090,3.0,3092.6,3091.7,0.06468056]
[1720606641319,3.23325,3092.9,3091.7,2.50968056]
[1720606641320,6.46653,3092.9,3091.7,2.50968056]
[1720606641465,6.46653,3092.9,3091.8,2.50397824]
[1720606641805,3.23325,3092.9,3091.8,2.50397824]
[1720606642316,0.50733012,3093.2,3091.8,2.50397824]
[1720606642317,3.23353,3092.6,3091.8,2.4393]
[1720606643213,3.0,3093.1,3091.8,2.4393]
[1720606643214,0.06471672,3092.5,3091.8,2.4393]
[1720606643364,3.23379,3092.4,3091.8,2.4393]
[1720606644005,3.23385,3092.3,3091.8,2.4393]
[1720606644313,3.23385,3092.3,3091.4,5.4388]
[1720606644519,3.2343,3091.9,3091.2,5.97]
[1720606644663,3.23447,3091.7,3091.2,5.97]
[1720606645012,3.23447,3091.7,3091.0,5.6688]
[1720606646679,6.46863,3091.9,3091.0,5.6688]
[1720606647075,3.23438,3091.8,3091.0,5.6688]
[1720606647834,3.23438,3091.8,3091.0,2.4388]
[1720606648192,3.23448,3091.7,3091.0,2.4388]
[1720606649295,3.23407,3092.1,3091.0,2.50349713]
[1720606649595,3.0,3092.0,3091.1,2.445]
[1720606650540,6.23415,3092.0,3091.1,2.445]
[1720606651801,3.0,3092.0,3091.1,2.445]
[1720606652096,3.23371,3092.5,3091.2,3.23496]
[1720606652303,3.23384,3092.3,3091.4,2.3488]
[1720606652842,3.23384,3092.3,3091.4,2.4134867]
[1720606653408,3.23384,3092.3,3091.5,0.06468544]
[1720606654032,3.0,3092.6,3091.4,5.58357]
[1720606654232,6.23361,3092.6,3091.5,3.23467]
[1720606655336,3.23363,3092.5,3091.5,3.23467]
[1720606655930,3.23345,3092.7,3091.6,3.23453]
[1720606656237,6.46696,3092.7,3091.6,3.23453]
[1720606656435,3.23345,3092.7,3091.6,3.23453]
[1720606656933,3.23345,3092.7,3091.8,2.2525]
[1720606657138,3.23345,3092.7,3091.9,0.06467774]
[1720606657335,3.23333,3092.8,3091.9,0.06467774]
[1720606657997,3.23342,3092.7,3091.9,0.06467774]
[1720606658395,3.23332,3092.8,3091.8,2.2525]
[1720606659412,3.0,3093.0,3091.8,2.2525]
[1720606659736,3.23327,3092.9,3091.8,2.2525]
[1720606659946,3.0,3093.0,3092.0,3.23409]
[1720606660516,3.23283,3093.3,3092.1,2.48576899]
[1720606660517,6.4657,3093.3,3092.1,2.48576899]
[1720606660716,3.0,3093.2,3092.1,2.48576899]
[1720606660921,6.23292,3093.2,3092.1,2.48576899]
[1720606661124,6.23292,3093.2,3092.1,11.68979899]
[1720606661514,3.233,3093.1,3092.1,11.62513]
[1720606662535,3.233,3093.1,3092.1,8.3911]
[1720606667021,3.233,3093.1,3092.2,0.06466822]
[1720606667218,3.233,3093.1,3092.1,8.3911]
[1720606667921,3.2331,3093.0,3092.1,8.3911]
[1720606670237,3.233,3093.1,3092.1,8.3911]
[1720606671543,6.46608,3093.1,3092.1,8.3911]
[1720606672041,3.233,3093.1,3092.1,8.3911]
[1720606673253,3.23316,3093.0,3092.1,8.3911]
[1720606679632,3.23322,3092.9,3092.1,8.3911]
[1720606681034,3.23343,3092.7,3092.1,8.3911]
[1720606681262,3.23361,3092.6,3092.1,8.3911]
[1720606681467,3.23364,3092.5,3092.1,8.3911]
[1720606681671,3.23343,3092.7,3092.1,8.3911]
[1720606681672,6.46694,3092.7,3092.1,8.3911]
[1720606681856,3.23355,3092.6,3092.1,8.3911]
[1720606682972,6.46715,3092.6,3092.1,8.3911]
[1720606683145,3.23363,3092.5,3092.1,8.3911]
[1720606683474,3.23363,3092.5,3092.1,2.4211]
[1720606683678,3.23313,3093.0,3092.1,2.4211]
[1720606683972,3.23358,3092.6,3092.1,2.4211]
[1720606684179,6.46718,3092.6,3092.1,2.4211]
[1720606684683,3.23363,3092.5,3091.7,8.433]
[1720606686281,3.23336,3092.8,3091.7,11.433]
[1720606686589,3.23336,3092.8,3091.8,2.463]
[1720606686590,3.0,3092.7,3091.8,2.463]
[1720606687680,6.23346,3092.7,3091.8,2.463]
[1720606688279,3.23316,3093.0,3091.9,3.29885574]
[1720606688470,3.23316,3093.0,3092.0,2.2756]
[1720606688980,3.23296,3093.2,3092.0,2.34026844]
[1720606689143,3.0,3093.1,3092.1,2.2756]
[1720606689343,3.23262,3093.5,3092.3,2.2756]
[1720606689561,3.23262,3093.5,3092.5,2.2756]
[1720606689562,6.46529,3093.5,3092.5,2.2756]
[1720606689782,3.23262,3093.5,3092.5,2.2756]
[1720606690853,3.0,3093.4,3092.5,2.2756]
[1720606691053,3.23248,3093.6,3092.6,2.2756]
[1720606691257,5.26419165,3093.9,3092.7,2.2756]
[1720606691258,3.23236,3093.8,3092.7,2.2756]
[1720606691458,3.0,3093.7,3092.8,0.06461818]
[1720606691646,3.23222,3093.9,3092.8,5.50891]
[1720606691865,3.23222,3093.9,3092.9,2.2756]
[1720606692978,3.23215,3094.0,3093.0,0.06465213]
[1720606693144,3.0,3093.9,3093.0,0.06465213]
[1720606693344,3.0,3093.9,3092.9,2.34025171]
[1720606694257,3.23215,3094.0,3092.9,8.57344171]
[1720606695084,3.23185,3094.2,3093.0,5.70688]
[1720606695240,3.23196,3094.1,3093.0,5.77152814]
[1720606696276,3.23185,3094.2,3093.0,5.77152814]
[1720606698050,3.23195,3094.1,3093.1,2.4738]
[1720606698246,3.23195,3094.1,3093.2,0.06464818]
[1720606699685,3.2318,3094.3,3093.2,0.06464818]
[1720606699900,3.0,3094.2,3093.3,2.4738]
[1720606700045,3.0,3094.2,3093.4,0.06464507]
[1720606700762,4.29317645,3094.9,3093.6,2.4738]
[1720606701111,3.23133,3094.7,3093.7,5.97]
[1720606701259,3.0,3094.6,3093.7,5.97]
[1720606701660,3.23133,3094.7,3093.7,5.97]
[1720606701975,5.49403,3094.9,3093.9,2.4738]
[1720606701976,3.23113,3094.9,3093.9,2.4738]
[1720606702566,6.46233,3094.9,3093.9,2.4738]
[1720606702992,3.23123,3094.8,3093.9,2.4738]
[1720606703364,3.23113,3094.9,3093.9,2.4738]
[1720606705063,3.23093,3095.1,3093.9,2.4738]
[1720606705293,6.23103,3095.0,3093.9,2.4738]
[1720606705569,3.0,3095.0,3094.0,2.4475]
[1720606705906,3.0,3095.0,3094.1,5.67943]
[1720606706075,3.0,3095.2,3094.1,5.67943]
[1720606706279,6.23081,3095.2,3094.1,2.4475]
[1720606706479,3.231,3095.1,3094.1,2.4475]
[1720606706717,6.23103,3095.0,3094.1,2.4475]
[1720606707071,3.0,3095.0,3094.1,2.4475]
[1720606707297,6.23081,3095.2,3094.1,2.4475]
[1720606707495,6.23081,3095.2,3094.1,2.51212596]
[1720606707695,6.23081,3095.2,3094.1,2.4475]
[1720606708312,3.23092,3095.1,3094.1,2.4475]
[1720606708476,3.0,3095.0,3094.1,2.4475]
[1720606709497,6.23109,3095.0,3094.1,2.4475]
[1720606709694,3.23123,3094.8,3094.1,2.4475]
[1720606712914,3.23133,3094.7,3094.1,2.4475]
[1720606714714,4.24833,3094.7,3094.1,2.4475]
[1720606715520,3.23155,3094.5,3094.1,2.4475]
[1720606716009,6.46317,3094.5,3094.1,2.4475]
[1720606716209,3.23155,3094.5,3094.1,2.4475]
[1720606716412,6.46317,3094.5,3094.1,2.4475]
[1720606716617,3.23155,3094.5,3094.1,2.4475]
[1720606717479,3.23138,3094.7,3094.1,2.4475]
[1720606718099,3.23114,3094.9,3094.1,3.4645]
[1720606719107,6.23105,3095.0,3094.4,1.017]
[1720606719433,3.23105,3095.0,3094.5,2.4337]
[1720606723420,3.23113,3094.9,3094.5,2.4337]
[1720606728713,3.23087,3095.2,3094.5,2.4337]
[1720606728942,3.0,3095.1,3094.5,2.4337]
[1720606729444,3.23104,3095.0,3094.5,2.4337]
[1720606731971,6.46214,3095.0,3094.5,2.4337]
[1720606732345,3.23112,3094.9,3094.5,2.4337]
[1720606733359,3.23129,3094.8,3094.2,2.4786]
[1720606733793,3.23129,3094.8,3094.1,5.97]
[1720606733935,3.23145,3094.6,3094.1,5.97]
[1720606734338,3.23154,3094.5,3094.1,5.97]
[1720606736979,3.23154,3094.5,3093.9,2.4786]
[1720606738184,2.03298265,3095.0,3093.9,2.4786]
[1720606738337,3.0,3095.1,3094.2,1.017]
[1720606738538,3.23095,3095.1,3094.2,1.017]
[1720606738780,3.0,3095.0,3094.2,1.017]
[1720606739278,3.0,3095.0,3094.0,1.017]
[1720606739436,3.23118,3094.9,3094.0,1.017]
[1720606739639,3.0,3094.8,3094.0,1.017]
[1720606740047,3.23118,3094.9,3094.0,1.017]
[1720606741488,3.23122,3094.8,3094.0,1.017]
[1720606741638,5.56107,3094.7,3093.9,2.4786]
[1720606741842,3.2315,3094.6,3093.9,2.4786]
[1720606743685,6.4632,3094.5,3093.9,2.4786]
[1720606743839,3.23156,3094.5,3093.9,2.4786]
[1720606744053,3.23174,3094.3,3093.9,2.4786]
[1720606744553,3.23156,3094.5,3093.9,3.4956]
[1720606745049,6.46319,3094.5,3093.9,3.4956]
[1720606745253,3.23142,3094.7,3093.9,3.4956]
[1720606745451,3.93861414,3094.6,3093.9,3.4956]
[1720606745654,3.23149,3094.6,3093.9,3.4956]
[1720606745891,3.23154,3094.5,3093.9,3.4956]
[1720606747607,2.03658047,3094.8,3093.9,3.4956]
[1720606747792,0.6127101,3094.7,3094.1,1.017]
[1720606747993,3.23139,3094.7,3094.1,1.017]
[1720606748182,5.26775047,3094.9,3094.1,1.017]
[1720606748384,3.23128,3094.8,3094.1,1.017]
[1720606748778,3.23117,3094.9,3094.2,2.2799]
[1720606751700,5.26723321,3095.1,3094.2,2.2799]
[1720606751900,3.7338495,3095.0,3094.2,2.2799]
[1720606752093,3.0,3095.0,3094.2,2.2799]
[1720606753820,3.0,3095.0,3094.2,2.34452426]
[1720606754119,3.0,3095.0,3094.3,1.017]
[1720606754612,3.0,3095.0,3094.4,2.2952]
[1720606754787,3.0,3095.1,3094.4,2.2952]
[1720606754971,3.0,3095.1,3094.5,0.06462425]
[1720606755177,3.0,3095.1,3094.4,2.2952]
[1720606755376,6.23091,3095.1,3094.4,2.2952]
[1720606757715,3.0,3095.1,3094.4,2.2952]
[1720606757910,3.0,3095.2,3094.4,2.2952]
[1720606758305,0.639471,3095.1,3094.4,2.2952]
[1720606758730,8.26679851,3095.2,3094.4,2.2952]
[1720606759050,0.63949381,3095.1,3094.4,2.2952]
[1720606761334,6.23087,3095.2,3094.4,2.2952]
[1720606762344,6.23087,3095.2,3094.5,1.017]
[1720606762507,3.23075,3095.3,3094.5,1.017]
[1720606762856,3.23075,3095.3,3094.6,2.4756]
[1720606763040,3.23081,3095.2,3094.6,2.54022137]
[1720606763741,3.23071,3095.3,3094.7,1.017]
[1720606765452,3.23069,3095.4,3094.8,2.4761]
[1720606773261,6.46137,3095.4,3094.8,2.4761]
[1720606773462,3.2307,3095.3,3094.8,2.4761]
[1720606774075,3.23082,3095.2,3094.8,2.4761]
[1720606774379,3.23082,3095.2,3094.5,1.017]
[1720606774380,3.23082,3095.2,3094.5,3.5097]
[1720606775195,6.46171,3095.2,3094.5,3.5097]
[1720606775896,3.23096,3095.1,3094.5,3.5097]
[1720606780926,3.23084,3095.2,3094.5,3.5097]
[1720606781217,6.46173,3095.2,3094.5,3.5097]
[1720606781994,3.23084,3095.2,3094.5,3.5097]
[1720606783426,3.23066,3095.4,3094.7,1.017]
[1720606783888,3.23066,3095.4,3094.8,2.45]
[1720606784784,3.2307,3095.3,3094.8,2.45]
[1720606801916,6.46147,3095.3,3094.8,2.45]
[1720606802371,3.2307,3095.3,3094.8,2.45]
[1720606803454,0.92082584,3095.2,3094.8,2.45]
[1720606803757,3.2307,3095.3,3094.8,2.45]
[1720606803964,5.26742395,3095.5,3094.8,2.45]
[1720606804262,0.92079632,3095.4,3094.8,2.45]
[1720606805532,4.15139632,3095.4,3094.8,2.45]
[1720606805727,0.92080474,3095.3,3094.8,2.45]
[1720606809225,5.26879762,3095.4,3094.8,2.45]
[1720606809479,0.92080606,3095.3,3094.8,2.45]
[1720606810787,0.92080606,3095.3,3094.8,3.467]
[1720606812686,0.82645508,3095.2,3094.8,3.467]
[1720606812891,0.82645508,3095.1,3094.8,3.467]
[1720606813044,5.26903402,3095.4,3094.8,2.45]
[1720606813250,0.82645553,3095.3,3094.8,2.45]
[1720606813473,3.23139,3094.7,3094.4,8.36686432]
[1720606813692,6.46306,3094.5,3094.4,8.36686432]
[1720606813855,6.46306,3094.5,3094.4,2.39686432]
[1720606813856,7.28951553,3094.5,3094.4,2.39686432]
[1720606814060,7.28951553,3094.5,3093.3,1.017]
[1720606814061,3.23203,3094.1,3093.4,2.3225]
[1720606814286,0.82645553,3094.0,3093.4,2.3225]
[1720606814457,3.23203,3094.1,3093.4,2.3225]
[1720606815267,3.23203,3094.1,3093.5,1.017]
[1720606816302,3.23203,3094.1,3093.4,5.3225]
[1720606816611,3.23258,3093.5,3093.3,2.39686432]
[1720606817021,3.23232,3093.8,3093.3,2.39686432]
[1720606817375,3.23248,3093.6,3093.3,2.39686432]
[1720606817820,3.23232,3093.8,3093.3,2.39686432]
[1720606818112,3.23243,3093.7,3093.3,2.39686432]
[1720606821104,3.23169,3094.4,3093.4,3.3161]
[1720606821411,3.0,3094.3,3093.4,3.3161]
[1720606821716,3.23181,3094.3,3093.4,3.3161]
[1720606823822,4.24862,3094.5,3093.4,3.3161]
[1720606823977,3.23165,3094.4,3093.6,1.017]
[1720606824183,3.23176,3094.3,3093.6,1.017]
[1720606824596,3.23165,3094.4,3093.6,1.017]
[1720606824820,3.23176,3094.3,3093.6,1.017]
[1720606825115,3.23176,3094.3,3093.4,6.3161]
[1720606829284,6.4636,3094.3,3093.4,6.3161]
[1720606829595,3.23211,3094.0,3093.4,5.2991]
[1720606830008,3.23216,3093.9,3093.4,2.2991]
[1720606830320,3.23216,3093.9,3093.3,2.39686432]
[1720606830321,1.017,3093.9,3093.3,2.39686432]
[1720606830538,3.2326,3093.5,3093.3,2.39686432]
[1720606833434,3.2325,3093.6,3093.3,2.39686432]
[1720606833585,3.23237,3093.7,3093.3,2.39686432]
[1720606835289,3.2326,3093.5,3093.3,2.39686432]
[1720606835634,3.23237,3093.7,3093.3,2.39686432]
[1720606835846,3.23248,3093.6,3093.3,2.39686432]
[1720606836025,3.23221,3093.9,3093.3,2.39686432]
[1720606836191,3.23209,3094.0,3093.3,2.39686432]
[1720606836387,3.0,3093.9,3093.3,2.39686432]
[1720606837427,3.23209,3094.0,3093.3,2.39686432]
[1720606838213,4.24904,3094.1,3093.3,2.39686432]
[1720606838214,3.23197,3094.1,3093.3,2.39686432]
[1720606839112,3.23215,3094.0,3093.3,2.39686432]
[1720606840643,3.23182,3094.3,3093.3,2.46151028]
[1720606840808,3.23182,3094.3,3093.5,1.017]
[1720606841195,3.23186,3094.2,3093.5,1.017]
[1720606842892,3.23182,3094.3,3093.5,1.017]
[1720606843307,6.46365,3094.3,3093.5,1.017]
[1720606843635,3.23188,3094.2,3093.5,1.017]
[1720606845248,3.23188,3094.2,3093.3,6.41386432]
[1720606846030,3.23173,3094.4,3093.5,1.017]
[1720606848939,3.23173,3094.4,3093.6,2.341]
[1720606854550,6.46345,3094.4,3093.6,2.341]
[1720606856982,3.23175,3094.3,3093.6,2.341]
[1720606857846,4.24849,3094.6,3093.6,2.341]
[1720606858163,3.23165,3094.4,3093.6,2.341]
[1720606859847,2.03311699,3094.8,3094.0,2.4543]
[1720606860048,4.71466982,3095.1,3094.0,2.4543]
[1720606860049,0.74233228,3094.7,3094.0,2.4543]
[1720606860256,3.23128,3094.8,3094.0,2.4543]
[1720606860470,0.74229129,3094.7,3094.0,2.4543]
[1720606860643,2.03311699,3094.9,3094.1,1.017]